Workbook

Sheet Formulae
C2: National 4 - Lifeskills Practice
C6: ="Q (a) Daniel is cooking a "&AO7&"kg turkey for Christmas dinner." -> Q (a) Daniel is cooking a 9kg turkey for Christmas dinner.
AO7: =ROUND(RAND()*(13-3)+3,0) -> 9 | BA7: =ROUND(RAND()*(8-1)+1,0) -> 7
C8: To cook the turkey property he follows the instructions given. | AO8: =ROUND(RAND()*(10-3)+3,0)*5 -> 15 | BB8: 1 | BC8: Gill
AO9: =ROUND(RAND()*(10-3)+3,0)*5 -> 50 | BB9: 2 | BC9: Anderson
C10: Cooking time | L10: T | M10: = | N10: =AO8 -> 15 | O10: w | P10: + | Q10: =AO9 -> 50 | V10: w = weight in kilogramms | AO10: =AO8*AO7+AO9 -> 185 | BB10: 3 | BC10: Rodgers
V11: T= time in minutes | AO11: =CONVERT(AO10,"mn","hr") -> 3.083333333 | BB11: 4 | BC11: McDermott
AO12: =TRUNC(AO11) -> 3 | BB12: 5 | BC12: Jordan
C13: How long in hours and minutes will the turkey take to cook. | Y13: hrs | AC13: mins | AO13: =ROUND((AO11-AO12)*60,0) -> 5 | BB13: 6 | BC13: Daly
AO14: =CONCATENATE(AO12,AO13) -> 35 | BB14: 7 | BC14: Dickie
AO15: =ROUND(RAND()*(17-14)+14,0) -> 15
C16: =" (b) The Christmas Dinner needs to be ready by "&AO17&"." -> (b) The Christmas Dinner needs to be ready by 15:50. | AO16: =ROUND(RAND()*(11-1)+1,0)*5 -> 50
AO17: =CONCATENATE(AO15,":",AO16) -> 15:50
D18: At what time will the turkey need to be in the oven. | Z18: (24 hr format) | AO18: =TIME(AO15,AO16,0) -> 15:50:00
AO19: =TIME(AO12,AO13,0) -> 03:05:00
AO20: =AO18-AO19 -> 12:45:00

Sheet Tolerance
C2: National 4 - Lifeskills Practice
AQ4: =ROUND(RAND()*(4-2)+2,0)*15 -> 45 | AR4: =ROUND(RAND()*(5-2)+2,0) -> 4 | AU4: =AQ4-AR4 -> 41 | AV4: =AQ4+AR4 -> 49 | AW4: =ROUND(RAND()*(5-1)+1,0) -> 2 | AX4: =ROUND(RAND()*(1-0)+0,0) -> 0
C6: ="Q A sample of six boxes contains the following number of bags of crisps per box." -> Q A sample of six boxes contains the following number of bags of crisps per box. | AP6: 1 | AQ6: =IF($AW$4=1,IF($AX$4=1,$AV$4+ROUND(RAND()*(2-1)+1,0),$AU$4-ROUND(RAND()*(2-1)+1,0)),ROUND(RAND()*($AV$4-$AU$4)+$AU$4,0)) -> 41
AP7: 2 | AQ7: =IF($AW$4=2,IF($AX$4=1,$AV$4+ROUND(RAND()*(2-1)+1,0),$AU$4-ROUND(RAND()*(2-1)+1,0)),ROUND(RAND()*($AV$4-$AU$4)+$AU$4,0)) -> 39
AP8: 3 | AQ8: =IF($AW$4=3,IF($AX$4=1,$AV$4+ROUND(RAND()*(2-1)+1,0),$AU$4-ROUND(RAND()*(2-1)+1,0)),ROUND(RAND()*($AV$4-$AU$4)+$AU$4,0)) -> 45
E9: =AQ6 -> 41 | H9: =AQ7 -> 39 | K9: =AQ8 -> 45 | N9: =AQ9 -> 41 | Q9: =AQ10 -> 42 | S9: =AQ11 -> 44 | AP9: 4 | AQ9: =IF($AW$4=4,IF($AX$4=1,$AV$4+ROUND(RAND()*(2-1)+1,0),$AU$4-ROUND(RAND()*(2-1)+1,0)),ROUND(RAND()*($AV$4-$AU$4)+$AU$4,0)) -> 41
AP10: 5 | AQ10: =IF($AW$4=5,IF($AX$4=1,$AV$4+ROUND(RAND()*(2-1)+1,0),$AU$4-ROUND(RAND()*(2-1)+1,0)),ROUND(RAND()*($AV$4-$AU$4)+$AU$4,0)) -> 42
AP11: 6 | AQ11: =IF($AW$4=6,IF($AX$4=1,$AV$4+ROUND(RAND()*(2-1)+1,0),$AU$4-ROUND(RAND()*(2-1)+1,0)),ROUND(RAND()*($AV$4-$AU$4)+$AU$4,0)) -> 44
C12: If then tolerance is | AP12: =LOOKUP(AW4,AP6:AP11,AQ6:AQ11) -> 39
AT14: V
C15: ="Which of these boxes of crisps would be outside a tolerance of ( "&AQ4&" ± "&AR4&" )." -> Which of these boxes of crisps would be outside a tolerance of ( 45 ± 4 ).
C17: Answer | AT17: H

Sheet Area_Volume
C2: National 4 - Lifeskills Practice
C6: ="Q Stuart plans to paint the inside of his livingroom walls." -> Q Stuart plans to paint the inside of his livingroom walls. | AQ6: =ROUND(RAND()*(1-1)+1,0) -> 1 | AR6: =CONCATENATE(AQ6,"m") -> 1m
AQ7: =ROUND(RAND()*(4-3)+3,0)*0.5 -> 2 | AR7: =CONCATENATE(AQ7,"m") -> 2m
AQ8: =ROUND(RAND()*(12-8)+8,0) -> 10 | AR8: 10m
AQ9: =AQ8-ROUND(RAND()*(3-2)+2,0) -> 7 | AR9: 7m
F10: =AR10 -> 3.5m | M10: =AR7 -> 2m | AQ10: =AQ9/2 -> 3.5 | AR10: 3.5m
I11: =AR6 -> 1m | P11: =AR6 -> 1m | V11: ="1 litre tin of paint covers "&AQ11&" square metres." -> 1 litre tin of paint covers 14 square metres. | AQ11: =ROUND(RAND()*(20-10)+10,0) -> 14
K12: =AR7 -> 2m
S13: =AR9 -> 7m
H15: =AR8 -> 10m
D17: The garage is in the shape of a cuboid, with dimensions as shown.
D19: (a) What is the total area of the livingroom walls? | AC19: m2 | AQ19: =(AQ8*AQ10)+2*(AQ9*AQ10)+(AQ8*AQ10-2*AQ6*AQ7) -> 115 | AR19: m2
D21: (b) What volume of paint must Stuart buy to paint the walls of his livingroom?
P23: (Answer to 1 decimal place) | AC23: litres | AQ23: =ROUND(AQ19/AQ11,1) -> 8.2 | AR23: litres
D25: (c) Paint is sold in 1 litre tins. How many tins of paint will Stuart need to buy?
AC27: tins | AQ27: =ROUNDUP(AQ23,0) -> 9 | AR27: tins
AQ28: =ROUND(RAND()*(10-4)+4,0) -> 8
D29: ="(d) Each tin costs £"&TEXT(AQ30,"0.00")&". What will be the cost of painting his livingroom?" -> (d) Each tin costs £17.50. What will be the cost of painting his livingroom? | AQ29: =2*AQ28+1 -> 17
AQ30: =AQ29+0.5 -> 17.5
Y31: £ | AQ31: =AQ30*AQ27 -> 157.5
D33: (e) New skirting boards need to be fitted around the walls of the livingroom
E34: at floor level (excluding the door).
E36: Calculate the total length of skirting board needed. | AC36: m | AQ36: =2*AQ8+2*AQ9-1 -> 33

Sheet Area
C2: National 4 - Lifeskills Practice
C6: =" Q Liam has a cupboard to store his music CD's." -> Q Liam has a cupboard to store his music CD's. | AP6: CD's
E7: ="The cupboard has "&AO12&" shelves." -> The cupboard has 5 shelves. | AO7: =ROUND(RAND()*(25-15)+15,0) -> 25 | AP7: Height
R8: CD | AO8: =ROUND(RAND()*(6-3)+3,0)*0.5 -> 2 | AP8: width
AO9: =ROUND(RAND()*(28-16)+16,0)*0.5 -> 8 | AP9: length
Q11: length | S11: =AO9 -> 8 | U11: cm | AP11: Shelves
Q12: Height | S12: =AO7 -> 25 | U12: cm | AO12: =ROUND(RAND()*(6-3)+3,0) -> 5 | AP12: shelves | AS12: Vertical
Q13: Width | S13: =AO8 -> 2 | U13: cm | AO13: =AO7 -> 25 | AP13: height | AS13: CD's
AO14: =IF(AQ14=0,ROUND(RAND()*(40-20)+20,0)*AO8+1,ROUND(RAND()*(40-20)+20,0)*AO8-1) -> 43 | AP14: width | AQ14: =ROUND(RAND()*(1-0)+0,0) -> 0 | AS14: =ROUNDDOWN(AO14/AO8,0)*AO12 -> 105 | AT14: V
AS15: =ROUNDDOWN(AO14/AO7,0) -> 1
T16: Length cupboard | Z16: =AO14 -> 43 | AB16: cm | AS16: =ROUNDDOWN(AO7/AO8,0) -> 12
T17: Shelf Height | Z17: =AO13 -> 25 | AB17: cm | AS17: =AS16*AS15*AO12 -> 60 | AT17: H
AS18: =IF(AS14>AS17,1,0) -> 1
C19: (a) How many book's stacked vertically can the cupboard hold. | Z19: book's
C21: (b) How many book's stacked horizontally can the cupboard hold. | Z21: Book's

Sheet Volume
C3: National 4 - Lifeskills Practice
AQ5: =ROUND(RAND()*(10-4)+4,0) -> 8 | AR5: =CONCATENATE(AQ5,"cm") -> 8cm
AQ6: =ROUND(RAND()*(30-15)+15,0) -> 16 | AR6: =CONCATENATE(AQ6,"cm") -> 16cm
C7: Martin has business making scented soap bars. | AQ7: =AQ5*AQ6*AQ5 -> 1024
C8: ="Each soap bar has a square base of "&AQ5&" cm and a height of "&AQ6&" cm, as shown." -> Each soap bar has a square base of 8 cm and a height of 16 cm, as shown. | AQ8: =ROUND(RAND()*(5-1)+1,0)*10000 -> 30000
AQ9: =AQ8/1000 -> 30
P13: =AR6 -> 16cm
L18: =AR5 -> 8cm
C20: ="He buys liquid soap in "&AQ9&" litre tubs." -> He buys liquid soap in 30 litre tubs. | O20: ( 1000cm3 = 1 litre )
C22: (a) How many deluxe soap bars can he make from one tub of liquid soap? | AC22: bars | AQ22: =ROUNDDOWN(AQ8/AQ7,0) -> 29
C24: ="(b) If Martin "&AQ25&" the volume of his soap bars," -> (b) If Martin doubles the volume of his soap bars, | AQ24: =ROUND(RAND()*(3-2)+2,0) -> 2
D25: how many soap bars will he be able to make with one tub of liquid soap? | AQ25: =IF(AQ24=3,"trebles","doubles") -> doubles
AC26: bars | AQ26: =ROUNDDOWN(AQ8/(AQ7*AQ24),0) -> 14

Sheet Pythagoras_Gradient
C2: National 4 - Lifeskills Practice
AI3: =ROUND(RAND()*(2-0)+0,0) -> 0
AI4: =2*ROUND(RAND()*(200-100)+100,0) -> 224 | AQ4: =ROUND(RAND()*(4-2)+2,0)*15 -> 30 | AR4: =ROUND(RAND()*(5-2)+2,0) -> 3 | AU4: =AQ4-AR4 -> 27 | AV4: =AQ4+AR4 -> 33 | AW4: =ROUND(RAND()*(5-1)+1,0) -> 2 | AX4: =ROUND(RAND()*(1-0)+0,0) -> 1
AI5: =ROUND(TAN(AJ5*PI()/180),2) -> 2.61 | AJ5: =ROUND(RAND()*(72-68)+68,0) -> 69
C6: ="Q For Health and Safety reasons the gradient of a ladder when resting again a wall " -> Q For Health and Safety reasons the gradient of a ladder when resting again a wall | AI6: =ROUND(TAN(AJ6*PI()/180),2) -> 5.14 | AJ6: =ROUND(RAND()*(80-77)+77,0) -> 79 | AP6: 1 | AQ6: =IF($AW$4=1,IF($AX$4=1,$AV$4+ROUND(RAND()*(2-1)+1,0),$AU$4-ROUND(RAND()*(2-1)+1,0)),ROUND(RAND()*($AV$4-$AU$4)+$AU$4,0)) -> 27
D7: =" must be between "&AI5&" and "&AI6&"." -> must be between 2.61 and 5.14. | AI7: =IF(AI3=2,ROUND(RAND()*(AI6-AI5)+AI5,0),IF(AI3=1,AI5-ROUND(RAND()*(0.1-0.04)+0.04,2),AI6+(ROUND(RAND()*(0.1-0.04)+0.04,2)))) -> 5.23 | AP7: 2 | AQ7: =IF($AW$4=2,IF($AX$4=1,$AV$4+ROUND(RAND()*(2-1)+1,0),$AU$4-ROUND(RAND()*(2-1)+1,0)),ROUND(RAND()*($AV$4-$AU$4)+$AU$4,0)) -> 35
AI8: =AI4/AI7 -> 42.82982792 | AP8: 3 | AQ8: =IF($AW$4=3,IF($AX$4=1,$AV$4+ROUND(RAND()*(2-1)+1,0),$AU$4-ROUND(RAND()*(2-1)+1,0)),ROUND(RAND()*($AV$4-$AU$4)+$AU$4,0)) -> 31
AI9: =SQRT(AI8*AI8+AI4*AI4) -> 228.0578746 | AP9: 4 | AQ9: =IF($AW$4=4,IF($AX$4=1,$AV$4+ROUND(RAND()*(2-1)+1,0),$AU$4-ROUND(RAND()*(2-1)+1,0)),ROUND(RAND()*($AV$4-$AU$4)+$AU$4,0)) -> 30
AI10: =IF(AI3=2,"Yes","No") -> No | AP10: 5 | AQ10: =IF($AW$4=5,IF($AX$4=1,$AV$4+ROUND(RAND()*(2-1)+1,0),$AU$4-ROUND(RAND()*(2-1)+1,0)),ROUND(RAND()*($AV$4-$AU$4)+$AU$4,0)) -> 33
AP11: 6 | AQ11: =IF($AW$4=6,IF($AX$4=1,$AV$4+ROUND(RAND()*(2-1)+1,0),$AU$4-ROUND(RAND()*(2-1)+1,0)),ROUND(RAND()*($AV$4-$AU$4)+$AU$4,0)) -> 32
AP12: =LOOKUP(AW4,AP6:AP11,AQ6:AQ11) -> 35
C14: The diagram below represents the ladder against the wall. | AT14: V
R16: h
L17: =ROUND(AI9,2) -> 228.06
V18: All measures are in cm
O21: =ROUND(AI8,2) -> 42.83
C23: (a) Find the height h of the ladder to the nearest centimetre. | X23: cm | AT23: H
C26: (b) Is the ladder safe to use ?
